[Event "Early-Titled-Tuesday-Blitz-September-05-2023"]
[Site "Chess.com"]
[Date "2023.09.05"]
[Round "8"]
[White "abelmat"]
[Black "LeoWin2012"]
[Result "0-1"]
[WhiteElo "1951"]
[BlackElo "2217"]
[TimeControl "180+1"]
[EndTime "9:27:43 PDT"]
[Termination "LeoWin2012 won on time"]

1. d4 {[%clk 0:03:00.8]} 1... d5 {[%clk 0:02:59.3]} 2. c4 {[%clk 0:03:00.6]}
2... e6 {[%clk 0:02:58.6]} 3. Nf3 {[%clk 0:03:01]} 3... a6 {[%clk 0:02:56.5]} 4.
Nc3 {[%clk 0:03:00.1]} 4... dxc4 {[%clk 0:02:56.2]} 5. e3 {[%clk 0:03:00]} 5...
c5 {[%clk 0:02:54.5]} 6. Bxc4 {[%clk 0:02:59.3]} 6... Nc6 {[%clk 0:02:48.9]} 7.
O-O {[%clk 0:02:58.6]} 7... cxd4 {[%clk 0:02:48.7]} 8. exd4 {[%clk 0:02:58.1]}
8... Nf6 {[%clk 0:02:48.2]} 9. d5 {[%clk 0:02:55.2]} 9... exd5 {[%clk
0:02:47.8]} 10. Nxd5 {[%clk 0:02:55.2]} 10... Nxd5 {[%clk 0:02:47.3]} 11. Bxd5
{[%clk 0:02:55.7]} 11... Be7 {[%clk 0:02:41.9]} 12. Be3 {[%clk 0:02:36.5]} 12...
O-O {[%clk 0:02:30.7]} 13. a3 {[%clk 0:02:18.5]} 13... Bg4 {[%clk 0:02:20.6]}
14. Qb3 {[%clk 0:02:17.6]} 14... Na5 {[%clk 0:02:11.7]} 15. Qa2 {[%clk
0:02:15.8]} 15... Bf6 {[%clk 0:01:56.1]} 16. Rfd1 {[%clk 0:02:09.7]} 16... Qe7
{[%clk 0:01:54.5]} 17. b4 {[%clk 0:02:07.2]} 17... Nc6 {[%clk 0:01:53.9]} 18.
Bc5 {[%clk 0:02:03.1]} 18... Qe8 {[%clk 0:01:43.2]} 19. Re1 {[%clk 0:01:48.6]}
19... Qc8 {[%clk 0:00:57.7]} 20. Bxf8 {[%clk 0:01:40.7]} 20... Bxa1 {[%clk
0:00:55.5]} 21. Bxf7+ {[%clk 0:01:07.4]} 21... Kxf8 {[%clk 0:00:55.2]} 22. Ng5
{[%clk 0:00:40.2]} 22... Bf5 {[%clk 0:00:16.6]} 23. Bh5 {[%clk 0:00:21.1]} 23...
Qd7 {[%clk 0:00:12.4]} 24. Qxa1 {[%clk 0:00:19.7]} 24... h6 {[%clk 0:00:09.8]}
25. Nf3 {[%clk 0:00:16.3]} 25... Rd8 {[%clk 0:00:08.4]} 26. h3 {[%clk
0:00:15.4]} 26... Kg8 {[%clk 0:00:08.6]} 27. Bg4 {[%clk 0:00:13.9]} 27... Bxg4
{[%clk 0:00:08.4]} 28. hxg4 {[%clk 0:00:14.8]} 28... Qxg4 {[%clk 0:00:08.4]} 29.
Qa2+ {[%clk 0:00:14]} 29... Kh8 {[%clk 0:00:08.6]} 30. Qf7 {[%clk 0:00:13.1]}
30... Nd4 {[%clk 0:00:07.4]} 31. Nxd4 {[%clk 0:00:11.9]} 31... Qxd4 {[%clk
0:00:08.3]} 32. Re8+ {[%clk 0:00:10.3]} 32... Rxe8 {[%clk 0:00:06.1]} 33. Qxe8+
{[%clk 0:00:10.1]} 33... Kh7 {[%clk 0:00:07]} 34. Qe1 {[%clk 0:00:08.5]} 34...
Qd3 {[%clk 0:00:05.8]} 35. Qa1 {[%clk 0:00:07.2]} 35... b5 {[%clk 0:00:04.6]}
36. g3 {[%clk 0:00:06.2]} 36... Kg8 {[%clk 0:00:04.9]} 37. Qa2+ {[%clk
0:00:05.7]} 37... Kf8 {[%clk 0:00:05.5]} 38. Qa1 {[%clk 0:00:04.8]} 38... Qd2
{[%clk 0:00:05.5]} 39. Qa2 {[%clk 0:00:04.3]} 39... Qd7 {[%clk 0:00:05.4]} 40.
Qa1 {[%clk 0:00:03.2]} 40... Qc6 {[%clk 0:00:05.7]} 41. Qe1 {[%clk 0:00:02.1]}
41... Kf7 {[%clk 0:00:05.6]} 42. Qa1 {[%clk 0:00:01.7]} 42... Qe6 {[%clk
0:00:06.1]} 43. Qc1 {[%clk 0:00:01.6]} 43... Qd5 {[%clk 0:00:05.6]} 44. Qf1
{[%clk 0:00:02.5]} 44... Kf6 {[%clk 0:00:05.4]} 45. Qe1 {[%clk 0:00:03]} 45...
Qe5 {[%clk 0:00:06.3]} 46. Qd1 {[%clk 0:00:02.7]} 46... Qe6 {[%clk 0:00:06.5]}
47. Qc1 {[%clk 0:00:02.5]} 47... Qc4 {[%clk 0:00:06.7]} 48. Qb2+ {[%clk
0:00:02.5]} 48... Ke6 {[%clk 0:00:06.4]} 49. Qb1 {[%clk 0:00:01.4]} 49... Qc3
{[%clk 0:00:06]} 50. Qf1 {[%clk 0:00:01.5]} 50... Qxa3 {[%clk 0:00:05.9]} 51.
Qe2+ {[%clk 0:00:02]} 51... Kd6 {[%clk 0:00:05.4]} 52. Qd2+ {[%clk 0:00:01.6]}
52... Kc6 {[%clk 0:00:05.5]} 53. Qd8 {[%clk 0:00:01.7]} 53... Qxb4 {[%clk
0:00:05.2]} 0-1

[Event "Early-Titled-Tuesday-Blitz-September-05-2023"]
[Site "Chess.com"]
[Date "2023.09.05"]
[Round "8"]
[White "GrumbleBruno"]
[Black "Agoking701"]
[Result "0-1"]
[WhiteElo "2468"]
[BlackElo "2572"]
[TimeControl "180+1"]
[EndTime "9:27:45 PDT"]
[Termination "Agoking701 won by checkmate"]

1. e4 {[%clk 0:02:49.8]} 1... e5 {[%clk 0:02:52.2]} 2. Nf3 {[%clk 0:02:49.5]}
2... Nc6 {[%clk 0:02:51.9]} 3. Bb5 {[%clk 0:02:50]} 3... Nf6 {[%clk 0:02:43.5]}
4. O-O {[%clk 0:02:50]} 4... Nxe4 {[%clk 0:02:43.7]} 5. Re1 {[%clk 0:02:50.4]}
5... Nd6 {[%clk 0:02:43.9]} 6. Nxe5 {[%clk 0:02:50.7]} 6... Be7 {[%clk
0:02:43.3]} 7. Bd3 {[%clk 0:02:49.9]} 7... O-O {[%clk 0:02:41.2]} 8. Nc3 {[%clk
0:02:49.4]} 8... Ne8 {[%clk 0:02:06.7]} 9. Nd5 {[%clk 0:02:33.4]} 9... Bd6
{[%clk 0:02:04.4]} 10. Qh5 {[%clk 0:02:10.3]} 10... g6 {[%clk 0:00:55.6]} 11.
Nxg6 {[%clk 0:02:03.2]} 11... fxg6 {[%clk 0:00:55.7]} 12. Bxg6 {[%clk
0:02:03.3]} 12... hxg6 {[%clk 0:00:48.2]} 13. Qxg6+ {[%clk 0:02:02.1]} 13... Ng7
{[%clk 0:00:42.4]} 14. d4 {[%clk 0:01:24.2]} 14... Nxd4 {[%clk 0:00:42]} 15. Bh6
{[%clk 0:01:21.6]} 15... Nf5 {[%clk 0:00:39.5]} 16. Re4 {[%clk 0:01:06]} 16...
Nxh6 {[%clk 0:00:34.1]} 17. Qxh6 {[%clk 0:01:05.3]} 17... c6 {[%clk 0:00:31.9]}
18. Rg4 {[%clk 0:00:53.2]} 18... Be5 {[%clk 0:00:30.6]} 19. Re1 {[%clk
0:00:49.3]} 19... cxd5 {[%clk 0:00:23.6]} 20. Rxe5 {[%clk 0:00:48.5]} 20... Qf6
{[%clk 0:00:23.8]} 21. Rxg7+ {[%clk 0:00:41.8]} 21... Qxg7 {[%clk 0:00:24.5]}
22. Rg5 {[%clk 0:00:42.1]} 22... Rf7 {[%clk 0:00:21]} 23. Rxg7+ {[%clk
0:00:38.6]} 23... Rxg7 {[%clk 0:00:21.9]} 24. Qd6 {[%clk 0:00:38.5]} 24... Kf7
{[%clk 0:00:15.7]} 25. h4 {[%clk 0:00:36.4]} 25... Rg6 {[%clk 0:00:14.8]} 26.
Qxd5+ {[%clk 0:00:36.5]} 26... Ke7 {[%clk 0:00:14.3]} 27. h5 {[%clk 0:00:36.2]}
27... Re6 {[%clk 0:00:13.7]} 28. Qg5+ {[%clk 0:00:36.3]} 28... Rf6 {[%clk
0:00:13.3]} 29. h6 {[%clk 0:00:35.4]} 29... d6 {[%clk 0:00:12.6]} 30. h7 {[%clk
0:00:33.5]} 30... Be6 {[%clk 0:00:13.3]} 31. Qg7+ {[%clk 0:00:32.3]} 31... Rf7
{[%clk 0:00:13]} 32. h8=Q {[%clk 0:00:32.6]} 32... Rxh8 {[%clk 0:00:13.5]} 33.
Qxh8 {[%clk 0:00:33]} 33... Rf5 {[%clk 0:00:10.8]} 34. Qd4 {[%clk 0:00:31.9]}
34... b6 {[%clk 0:00:10.3]} 35. c4 {[%clk 0:00:30.6]} 35... Kd7 {[%clk
0:00:08.1]} 36. b3 {[%clk 0:00:30.6]} 36... Re5 {[%clk 0:00:08.7]} 37. Qd2
{[%clk 0:00:28.8]} 37... Kc6 {[%clk 0:00:09]} 38. f3 {[%clk 0:00:29]} 38... a6
{[%clk 0:00:09.3]} 39. Kf2 {[%clk 0:00:29.3]} 39... b5 {[%clk 0:00:09.9]} 40.
cxb5+ {[%clk 0:00:29.4]} 40... axb5 {[%clk 0:00:10.6]} 41. g4 {[%clk 0:00:29]}
41... d5 {[%clk 0:00:08.6]} 42. Qc3+ {[%clk 0:00:25.6]} 42... Kd6 {[%clk
0:00:08.3]} 43. Qb4+ {[%clk 0:00:24.9]} 43... Kc6 {[%clk 0:00:08.1]} 44. Qe7
{[%clk 0:00:21.4]} 44... d4 {[%clk 0:00:07.8]} 45. f4 {[%clk 0:00:20.9]} 45...
Re3 {[%clk 0:00:07.3]} 46. Qe8+ {[%clk 0:00:20]} 46... Kd5 {[%clk 0:00:05]} 47.
Qxb5+ {[%clk 0:00:19.6]} 47... Ke4 {[%clk 0:00:05.5]} 48. f5 {[%clk 0:00:18.9]}
48... Bd5 {[%clk 0:00:05.2]} 49. Qe8+ {[%clk 0:00:16.4]} 49... Kd3 {[%clk
0:00:05.1]} 50. Qd7 {[%clk 0:00:15.1]} 50... Rf3+ {[%clk 0:00:03.3]} 51. Ke1
{[%clk 0:00:15]} 51... Be4 {[%clk 0:00:03.7]} 52. Qb5+ {[%clk 0:00:13.1]} 52...
Ke3 {[%clk 0:00:04]} 53. Qe5 {[%clk 0:00:11.5]} 53... Rh3 {[%clk 0:00:03.7]} 54.
Qxe4+ {[%clk 0:00:09.4]} 54... Kxe4 {[%clk 0:00:04]} 55. f6 {[%clk 0:00:10.2]}
55... Ke3 {[%clk 0:00:03.1]} 56. Kd1 {[%clk 0:00:09.5]} 56... Rh1+ {[%clk
0:00:02.2]} 57. Kc2 {[%clk 0:00:09.7]} 57... d3+ {[%clk 0:00:02.9]} 58. Kc3
{[%clk 0:00:10.1]} 58... Rf1 {[%clk 0:00:03.3]} 59. g5 {[%clk 0:00:09.9]} 59...
d2 {[%clk 0:00:03.9]} 60. g6 {[%clk 0:00:10.4]} 60... d1=Q {[%clk 0:00:04.2]}
61. g7 {[%clk 0:00:10.9]} 61... Qd4+ {[%clk 0:00:04.4]} 62. Kc2 {[%clk
0:00:10.7]} 62... Rf2+ {[%clk 0:00:03.9]} 63. Kb1 {[%clk 0:00:10.1]} 63... Qb2#
{[%clk 0:00:03.8]} 0-1

[Event "Early-Titled-Tuesday-Blitz-September-05-2023"]
[Site "Chess.com"]
[Date "2023.09.05"]
[Round "8"]
[White "Iskusnyh"]
[Black "cthulhuuu"]
[Result "1/2-1/2"]
[WhiteElo "2615"]
[BlackElo "2458"]
[TimeControl "180+1"]
[EndTime "9:27:54 PDT"]
[Termination "Game drawn - insufficient material"]

1. d4 {[%clk 0:03:00.9]} 1... Nf6 {[%clk 0:02:58.6]} 2. c4 {[%clk 0:03:00.3]}
2... e5 {[%clk 0:02:58.8]} 3. dxe5 {[%clk 0:02:58.8]} 3... Ng4 {[%clk
0:02:59.5]} 4. e3 {[%clk 0:02:55.1]} 4... Nxe5 {[%clk 0:02:59.1]} 5. f4 {[%clk
0:02:50.5]} 5... Nec6 {[%clk 0:02:57.7]} 6. Nc3 {[%clk 0:02:46.8]} 6... Bb4
{[%clk 0:02:55.6]} 7. Bd2 {[%clk 0:02:36.2]} 7... a5 {[%clk 0:02:55.3]} 8. Nf3
{[%clk 0:02:32.7]} 8... Na6 {[%clk 0:02:54.9]} 9. Bd3 {[%clk 0:02:28]} 9... Nc5
{[%clk 0:02:53]} 10. Bc2 {[%clk 0:02:27.6]} 10... d6 {[%clk 0:02:31.5]} 11. O-O
{[%clk 0:02:25.7]} 11... O-O {[%clk 0:02:31.1]} 12. a3 {[%clk 0:02:10.8]} 12...
Bxc3 {[%clk 0:02:30.6]} 13. Bxc3 {[%clk 0:02:11.7]} 13... f5 {[%clk 0:02:29.5]}
14. b4 {[%clk 0:02:03.5]} 14... axb4 {[%clk 0:02:21.1]} 15. axb4 {[%clk
0:02:04.4]} 15... Rxa1 {[%clk 0:02:17.9]} 16. Qxa1 {[%clk 0:02:04.5]} 16... Ne6
{[%clk 0:02:18.2]} 17. Rd1 {[%clk 0:01:51.3]} 17... Qe7 {[%clk 0:02:17.3]} 18.
Qc1 {[%clk 0:01:36.8]} 18... Kh8 {[%clk 0:01:51]} 19. Qd2 {[%clk 0:01:30.2]}
19... h6 {[%clk 0:01:12.1]} 20. b5 {[%clk 0:01:21.8]} 20... Ncd8 {[%clk
0:01:10.3]} 21. b6 {[%clk 0:01:21.1]} 21... Nf7 {[%clk 0:00:46.8]} 22. Bxf5
{[%clk 0:01:11.1]} 22... cxb6 {[%clk 0:00:41.7]} 23. Bb1 {[%clk 0:01:02.4]}
23... Nc5 {[%clk 0:00:25.9]} 24. Qd4 {[%clk 0:00:50.6]} 24... Rg8 {[%clk
0:00:26]} 25. Kh1 {[%clk 0:00:39.2]} 25... Bd7 {[%clk 0:00:25.9]} 26. f5 {[%clk
0:00:33.7]} 26... Ne5 {[%clk 0:00:16.6]} 27. Nxe5 {[%clk 0:00:31.4]} 27... Qxe5
{[%clk 0:00:17.1]} 28. Qxe5 {[%clk 0:00:30.8]} 28... dxe5 {[%clk 0:00:18]} 29.
Bxe5 {[%clk 0:00:31.5]} 29... Re8 {[%clk 0:00:17.2]} 30. Bd4 {[%clk 0:00:29.2]}
30... Bc6 {[%clk 0:00:08.7]} 31. h3 {[%clk 0:00:28.4]} 31... Rf8 {[%clk
0:00:07.6]} 32. Kh2 {[%clk 0:00:27]} 32... Ne4 {[%clk 0:00:05.4]} 33. g4 {[%clk
0:00:26.5]} 33... h5 {[%clk 0:00:05.8]} 34. Bxb6 {[%clk 0:00:24.8]} 34... hxg4
{[%clk 0:00:06]} 35. hxg4 {[%clk 0:00:25.5]} 35... Kg8 {[%clk 0:00:06.9]} 36.
Bxe4 {[%clk 0:00:22.1]} 36... Bxe4 {[%clk 0:00:06.9]} 37. Rd7 {[%clk 0:00:22.7]}
37... Bf3 {[%clk 0:00:07]} 38. Kg3 {[%clk 0:00:22.2]} 38... Bc6 {[%clk
0:00:07.6]} 39. Rc7 {[%clk 0:00:21.7]} 39... Rf7 {[%clk 0:00:06.4]} 40. Rc8+
{[%clk 0:00:20.5]} 40... Kh7 {[%clk 0:00:06.4]} 41. Kf4 {[%clk 0:00:19.1]} 41...
Rd7 {[%clk 0:00:06.8]} 42. Bd4 {[%clk 0:00:18.1]} 42... Re7 {[%clk 0:00:06.6]}
43. Be5 {[%clk 0:00:15.8]} 43... g5+ {[%clk 0:00:05.2]} 44. fxg6+ {[%clk
0:00:13]} 44... Kxg6 {[%clk 0:00:06.1]} 45. Rd8 {[%clk 0:00:11.9]} 45... Rf7+
{[%clk 0:00:06.5]} 46. Kg3 {[%clk 0:00:10.7]} 46... Rf3+ {[%clk 0:00:07.4]} 47.
Kh4 {[%clk 0:00:11.2]} 47... Rxe3 {[%clk 0:00:07.6]} 48. Rd6+ {[%clk 0:00:10.7]}
48... Kf7 {[%clk 0:00:07.7]} 49. Bf4 {[%clk 0:00:09.2]} 49... Re4 {[%clk
0:00:08.2]} 50. Kg5 {[%clk 0:00:06.3]} 50... Rxc4 {[%clk 0:00:08.1]} 51. Rf6+
{[%clk 0:00:06.5]} 51... Ke7 {[%clk 0:00:07.7]} 52. Bd6+ {[%clk 0:00:06.7]}
52... Kd7 {[%clk 0:00:08]} 53. Bg3 {[%clk 0:00:05.6]} 53... Rc5+ {[%clk
0:00:07.2]} 54. Kh6 {[%clk 0:00:05.6]} 54... Bd5 {[%clk 0:00:06.6]} 55. g5
{[%clk 0:00:05.7]} 55... Rc6 {[%clk 0:00:06.7]} 56. Rxc6 {[%clk 0:00:03.9]}
56... Kxc6 {[%clk 0:00:06.8]} 57. Bf2 {[%clk 0:00:04.2]} 57... b5 {[%clk
0:00:06.5]} 58. g6 {[%clk 0:00:04.4]} 58... b4 {[%clk 0:00:06.2]} 59. Bd4 {[%clk
0:00:05.3]} 59... b3 {[%clk 0:00:06.3]} 60. Bb2 {[%clk 0:00:05.5]} 60... Kb5
{[%clk 0:00:06.5]} 61. g7 {[%clk 0:00:05.9]} 61... Kc4 {[%clk 0:00:06.9]} 62.
Kh7 {[%clk 0:00:06.5]} 62... Kd3 {[%clk 0:00:07.5]} 63. g8=Q {[%clk 0:00:07.4]}
63... Bxg8+ {[%clk 0:00:07.9]} 64. Kxg8 {[%clk 0:00:08.3]} 64... Kc2 {[%clk
0:00:08.8]} 65. Ba3 {[%clk 0:00:08.4]} 65... b2 {[%clk 0:00:09.4]} 66. Bxb2
{[%clk 0:00:08.6]} 1/2-1/2

[Event "Early-Titled-Tuesday-Blitz-September-05-2023"]
[Site "Chess.com"]
[Date "2023.09.05"]
[Round "8"]
[White "DanielDardha2005"]
[Black "kingofthenil"]
[Result "0-1"]
[WhiteElo "2930"]
[BlackElo "2748"]
[TimeControl "180+1"]
[EndTime "9:27:58 PDT"]
[Termination "kingofthenil won by resignation"]

1. Nc3 {[%clk 0:03:00.9]} 1... d5 {[%clk 0:02:49.7]} 2. Nb1 {[%clk 0:02:59.3]}
2... h5 {[%clk 0:02:33.6]} 3. Nf3 {[%clk 0:02:59.2]} 3... Nc6 {[%clk 0:02:30.2]}
4. d4 {[%clk 0:02:56.7]} 4... Bf5 {[%clk 0:02:30.5]} 5. e3 {[%clk 0:02:51.7]}
5... Nb4 {[%clk 0:02:23.1]} 6. Na3 {[%clk 0:02:51.4]} 6... e6 {[%clk 0:02:21.7]}
7. c3 {[%clk 0:02:50.8]} 7... Nc6 {[%clk 0:02:21.3]} 8. c4 {[%clk 0:02:50.3]}
8... Nb4 {[%clk 0:02:11.6]} 9. c5 {[%clk 0:02:46.4]} 9... a5 {[%clk 0:02:09.8]}
10. Bd2 {[%clk 0:02:39.6]} 10... Nf6 {[%clk 0:02:08]} 11. Ne5 {[%clk 0:02:33.7]}
11... c6 {[%clk 0:01:57.7]} 12. Qb3 {[%clk 0:02:21.1]} 12... Ne4 {[%clk
0:00:55.4]} 13. Bxb4 {[%clk 0:02:20.2]} 13... axb4 {[%clk 0:00:56.3]} 14. Qxb4
{[%clk 0:02:21.1]} 14... f6 {[%clk 0:00:18.8]} 15. Nf3 {[%clk 0:01:56.3]} 15...
b6 {[%clk 0:00:17.6]} 16. Qxb6 {[%clk 0:01:13]} 16... Qxb6 {[%clk 0:00:05.4]}
17. cxb6 {[%clk 0:01:13.9]} 17... Bb4+ {[%clk 0:00:05.7]} 18. Ke2 {[%clk
0:01:14.5]} 18... Bxa3 {[%clk 0:00:03.7]} 19. bxa3 {[%clk 0:01:15.4]} 19... Kd7
{[%clk 0:00:03.4]} 20. Nd2 {[%clk 0:01:15.4]} 20... Nc3+ {[%clk 0:00:03.7]} 21.
Ke1 {[%clk 0:01:15.4]} 21... Rxa3 {[%clk 0:00:04]} 22. Nb3 {[%clk 0:01:09.7]}
22... Rb8 {[%clk 0:00:03.5]} 23. Nc5+ {[%clk 0:01:10.1]} 23... Kd6 {[%clk
0:00:04.4]} 24. Be2 {[%clk 0:00:40.7]} 24... Nxe2 {[%clk 0:00:03.9]} 25. Kxe2
{[%clk 0:00:41.6]} 25... Rxb6 {[%clk 0:00:04]} 26. Rhd1 {[%clk 0:00:36.7]} 26...
Rb2+ {[%clk 0:00:03.9]} 27. Rd2 {[%clk 0:00:37.2]} 27... Rb1 {[%clk 0:00:04.8]}
28. Rd1 {[%clk 0:00:23.3]} 28... Rb2+ {[%clk 0:00:04.7]} 29. Rd2 {[%clk
0:00:20.3]} 29... Rb1 {[%clk 0:00:05.2]} 30. Rxb1 {[%clk 0:00:19.3]} 30... Bxb1
{[%clk 0:00:06.1]} 31. Kf3 {[%clk 0:00:17.7]} 31... Rxa2 {[%clk 0:00:06.3]} 32.
Rd1 {[%clk 0:00:18.3]} 32... Bc2 {[%clk 0:00:05.4]} 33. Rc1 {[%clk 0:00:18.1]}
33... e5 {[%clk 0:00:06]} 34. Re1 {[%clk 0:00:16.8]} 34... g5 {[%clk 0:00:05.4]}
35. h4 {[%clk 0:00:16.4]} 35... Bf5 {[%clk 0:00:05.1]} 36. hxg5 {[%clk
0:00:16.4]} 36... fxg5 {[%clk 0:00:06]} 37. Rh1 {[%clk 0:00:14.5]} 37... Bg4+
{[%clk 0:00:04.3]} 38. Kg3 {[%clk 0:00:14.7]} 38... exd4 {[%clk 0:00:04.8]} 39.
exd4 {[%clk 0:00:14.8]} 39... Rd2 {[%clk 0:00:04.9]} 40. f3 {[%clk 0:00:14.9]}
40... Rxd4 {[%clk 0:00:05.4]} 41. Nb7+ {[%clk 0:00:09.5]} 41... Kc7 {[%clk
0:00:05.5]} 42. Nc5 {[%clk 0:00:10.4]} 42... Rc4 {[%clk 0:00:04.9]} 43. Nd3
{[%clk 0:00:10.1]} 43... Bf5 {[%clk 0:00:04.3]} 44. Ne5 {[%clk 0:00:10.8]} 44...
h4+ {[%clk 0:00:03.7]} 45. Kf2 {[%clk 0:00:10.4]} 45... Rc2+ {[%clk 0:00:04.6]}
46. Ke3 {[%clk 0:00:10.9]} 46... Rxg2 {[%clk 0:00:04.4]} 47. Rc1 {[%clk
0:00:11.6]} 47... Bd7 {[%clk 0:00:04.9]} 48. Ra1 {[%clk 0:00:11.6]} 48... Kd6
{[%clk 0:00:03.6]} 49. Nf7+ {[%clk 0:00:12.1]} 49... Ke6 {[%clk 0:00:04.2]} 50.
Nh6 {[%clk 0:00:10.9]} 50... c5 {[%clk 0:00:04]} 51. Ra6+ {[%clk 0:00:10.8]}
51... Ke7 {[%clk 0:00:04.2]} 52. Ng8+ {[%clk 0:00:10.2]} 52... Kf8 {[%clk
0:00:03.9]} 53. Nf6 {[%clk 0:00:10.3]} 53... d4+ {[%clk 0:00:04]} 54. Ke4 {[%clk
0:00:09.7]} 54... Re2+ {[%clk 0:00:03.7]} 55. Kd5 {[%clk 0:00:09.4]} 55... Be6+
{[%clk 0:00:04.4]} 56. Kxc5 {[%clk 0:00:07.2]} 56... d3 {[%clk 0:00:05]} 57.
Nh7+ {[%clk 0:00:07.6]} 57... Kg7 {[%clk 0:00:04.5]} 58. Nxg5 {[%clk 0:00:08.3]}
58... Bf5 {[%clk 0:00:05.1]} 59. Rd6 {[%clk 0:00:05.6]} 59... d2 {[%clk
0:00:05.6]} 60. Kc4 {[%clk 0:00:04.4]} 60... Bc2 {[%clk 0:00:05.9]} 61. Ne6+
{[%clk 0:00:02.5]} 61... Rxe6 {[%clk 0:00:05.9]} 62. Rxd2 {[%clk 0:00:02.8]}
62... Bf5 {[%clk 0:00:05.3]} 63. Kd5 {[%clk 0:00:02.6]} 63... Kf6 {[%clk
0:00:05.4]} 64. Rd4 {[%clk 0:00:02]} 64... h3 {[%clk 0:00:06.3]} 65. Rh4 {[%clk
0:00:02.6]} 65... Kg5 {[%clk 0:00:06.3]} 66. Rh8 {[%clk 0:00:01.8]} 66... Rh6
{[%clk 0:00:06.7]} 67. f4+ {[%clk 0:00:02.7]} 67... Kh5 {[%clk 0:00:06.7]} 68.
Rg8 {[%clk 0:00:02.7]} 68... Kh4 {[%clk 0:00:06.3]} 69. Ke5 {[%clk 0:00:02]}
69... Rh5 {[%clk 0:00:06.1]} 70. Kf6 {[%clk 0:00:01.7]} 70... h2 {[%clk
0:00:06.1]} 71. Rg1 {[%clk 0:00:01.1]} 71... hxg1=Q {[%clk 0:00:05.8]} 0-1

[Event "Early-Titled-Tuesday-Blitz-September-05-2023"]
[Site "Chess.com"]
[Date "2023.09.05"]
[Round "8"]
[White "SCIM"]
[Black "Yerlan-Ra"]
[Result "0-1"]
[WhiteElo "2606"]
[BlackElo "2474"]
[TimeControl "180+1"]
[EndTime "9:27:58 PDT"]
[Termination "Yerlan-Ra won on time"]

1. d4 {[%clk 0:01:31.3]} 1... Nf6 {[%clk 0:02:55.6]} 2. c4 {[%clk 0:01:31.8]}
2... g6 {[%clk 0:02:56]} 3. Nc3 {[%clk 0:01:31.4]} 3... Bg7 {[%clk 0:02:56.5]}
4. e4 {[%clk 0:01:31.9]} 4... d6 {[%clk 0:02:57.2]} 5. f3 {[%clk 0:01:32.3]}
5... O-O {[%clk 0:02:57.8]} 6. Bg5 {[%clk 0:01:32.9]} 6... Nbd7 {[%clk
0:02:57.9]} 7. Nh3 {[%clk 0:01:32.6]} 7... h6 {[%clk 0:02:57.2]} 8. Be3 {[%clk
0:01:32.2]} 8... c5 {[%clk 0:02:57.1]} 9. d5 {[%clk 0:01:30.4]} 9... Kh7 {[%clk
0:02:51.1]} 10. Nf2 {[%clk 0:01:30.4]} 10... a6 {[%clk 0:02:49]} 11. a4 {[%clk
0:01:26.2]} 11... Re8 {[%clk 0:02:42.8]} 12. Be2 {[%clk 0:01:24.8]} 12... Nf8
{[%clk 0:02:37.4]} 13. O-O {[%clk 0:01:24.2]} 13... e6 {[%clk 0:02:37.2]} 14.
Qd2 {[%clk 0:01:20.7]} 14... Rb8 {[%clk 0:02:27.4]} 15. a5 {[%clk 0:01:15.5]}
15... b6 {[%clk 0:02:25.5]} 16. axb6 {[%clk 0:01:16.4]} 16... Qxb6 {[%clk
0:02:24.1]} 17. Ra2 {[%clk 0:01:13.4]} 17... exd5 {[%clk 0:02:22.1]} 18. cxd5
{[%clk 0:01:12.6]} 18... a5 {[%clk 0:02:15.7]} 19. Rfa1 {[%clk 0:01:12.2]} 19...
N6d7 {[%clk 0:02:01.2]} 20. Nfd1 {[%clk 0:01:07.9]} 20... Ba6 {[%clk 0:01:57.1]}
21. Bxa6 {[%clk 0:01:04.3]} 21... Qxa6 {[%clk 0:01:58]} 22. Rxa5 {[%clk
0:01:04.4]} 22... Qc4 {[%clk 0:01:58]} 23. R5a4 {[%clk 0:01:00.2]} 23... Qb3
{[%clk 0:01:57.3]} 24. R1a3 {[%clk 0:00:57.2]} 24... Qb6 {[%clk 0:01:55.8]} 25.
Ra6 {[%clk 0:00:55.5]} 25... Qc7 {[%clk 0:01:55.8]} 26. Ra7 {[%clk 0:00:54.7]}
26... Rb7 {[%clk 0:01:56.2]} 27. Rxb7 {[%clk 0:00:52.8]} 27... Qxb7 {[%clk
0:01:57.1]} 28. h4 {[%clk 0:00:51.6]} 28... Ne5 {[%clk 0:01:54.8]} 29. Qe2
{[%clk 0:00:50.3]} 29... Ra8 {[%clk 0:01:47.9]} 30. Qb5 {[%clk 0:00:46.5]} 30...
Qc8 {[%clk 0:01:38.4]} 31. h5 {[%clk 0:00:40.7]} 31... Rb8 {[%clk 0:01:37.9]}
32. Qe2 {[%clk 0:00:38.5]} 32... gxh5 {[%clk 0:01:34.8]} 33. Ra7 {[%clk
0:00:37.3]} 33... Nfg6 {[%clk 0:01:27.8]} 34. f4 {[%clk 0:00:33.4]} 34... Ng4
{[%clk 0:01:27.4]} 35. Rxf7 {[%clk 0:00:32.7]} 35... Kg8 {[%clk 0:01:20.5]} 36.
Ra7 {[%clk 0:00:30.2]} 36... Nxe3 {[%clk 0:01:16.5]} 37. Nxe3 {[%clk 0:00:29.9]}
37... Nxf4 {[%clk 0:01:17]} 38. Qf3 {[%clk 0:00:28.8]} 38... Be5 {[%clk
0:01:11]} 39. Nc4 {[%clk 0:00:24]} 39... Bd4+ {[%clk 0:01:03.9]} 40. Kh2 {[%clk
0:00:23.3]} 40... Qg4 {[%clk 0:01:01]} 41. Qxg4+ {[%clk 0:00:17.3]} 41... hxg4
{[%clk 0:01:01.9]} 42. Nxd6 {[%clk 0:00:17.4]} 42... Rxb2 {[%clk 0:01:02.3]} 43.
Nf5 {[%clk 0:00:17.3]} 43... Rxg2+ {[%clk 0:01:00.9]} 44. Kh1 {[%clk 0:00:15.9]}
44... Rg1+ {[%clk 0:00:59.2]} 45. Kh2 {[%clk 0:00:15.1]} 45... g3+ {[%clk
0:00:50]} 46. Nxg3 {[%clk 0:00:14]} 46... Rg2+ {[%clk 0:00:50.5]} 47. Kh1 {[%clk
0:00:13.1]} 47... Rxg3 {[%clk 0:00:51.4]} 48. Nb5 {[%clk 0:00:11.5]} 48... Be5
{[%clk 0:00:34.8]} 49. d6 {[%clk 0:00:10.4]} 49... Nh3 {[%clk 0:00:33.2]} 50.
Kh2 {[%clk 0:00:07.8]} 50... Nf2 {[%clk 0:00:28.5]} 51. d7 {[%clk 0:00:05.7]}
51... Ng4+ {[%clk 0:00:13.7]} 52. Kh1 {[%clk 0:00:05.1]} 52... Bf6 {[%clk
0:00:08.8]} 53. Ra8+ {[%clk 0:00:04.2]} 53... Kf7 {[%clk 0:00:09.1]} 54. d8=Q
{[%clk 0:00:04.9]} 54... Bxd8 {[%clk 0:00:09.7]} 55. Rxd8 {[%clk 0:00:05.2]}
55... h5 {[%clk 0:00:09]} 56. Rd5 {[%clk 0:00:04.7]} 56... h4 {[%clk 0:00:09.3]}
57. Rxc5 {[%clk 0:00:03.6]} 57... h3 {[%clk 0:00:09.6]} 58. Rc1 {[%clk
0:00:03.5]} 58... h2 {[%clk 0:00:08.8]} 59. Rf1+ {[%clk 0:00:02.9]} 59... Ke6
{[%clk 0:00:08.9]} 60. Nd4+ {[%clk 0:00:03.3]} 60... Ke5 {[%clk 0:00:08]} 61.
Nf5 {[%clk 0:00:04]} 61... Rd3 {[%clk 0:00:05.2]} 62. Nh4 {[%clk 0:00:04.6]}
62... Kxe4 {[%clk 0:00:04.9]} 63. Re1+ {[%clk 0:00:04.7]} 63... Kf4 {[%clk
0:00:05.2]} 64. Ng2+ {[%clk 0:00:04.6]} 64... Kg3 {[%clk 0:00:05.4]} 65. Rf1
{[%clk 0:00:02.5]} 65... Rd1 {[%clk 0:00:05.8]} 0-1